fUSD/lending_fUSD_20250503
["ID","MTS","AMOUNT","RATE_DAILY","PERIOD"]
[359706343,1746268905075,-1263.0,0.0002,2]
[359706344,1746268905095,-205113.8770154,0.0002,2]
[359706345,1746268905249,-311976.07,0.0002,2]
[359706346,1746268906779,-450.0,0.00019743,2]
[359706347,1746268906810,-450.0,0.00019743,2]
[359706348,1746268906843,-450.0,0.00019743,2]
[359706349,1746268906874,-450.0,0.00019743,2]
[359706350,1746268906905,-450.0,0.00019743,2]
[359706351,1746268906936,-500.0,0.00019743,2]
[359706352,1746268906971,-71171.20329645,0.0002,2]
[359706353,1746268906991,-450.0,0.0002,2]
[359706354,1746268907004,-450.0,0.0002,2]
[359706355,1746268907017,-450.0,0.0002,2]
[359706356,1746268907041,-450.0,0.00019743,2]
[359706357,1746268907054,-450.0,0.0002,2]
[359706358,1746268907071,-500.0,0.0002,2]
[359706359,1746268907090,-161833.6634071,0.0002,2]
[359706360,1746268907101,-344.48540868,0.0002,2]
[359706361,1746268907111,-73126.71788777,0.0002,2]
[359706363,1746269070296,1000.0,0.0001901,2]
[359706364,1746269124480,255.37333,0.0002,23]
[359706368,1746269228775,150.050319,0.0003,30]
[359707467,1746269293914,250.0,0.00018892,7]
[359707471,1746269398113,172.0,0.0003,30]
[359707472,1746269428547,170.44889419,0.0003,30]
[359707503,1746269431781,-158.5213762,0.0001964,2]
[359707505,1746269431790,-3694.12939605,0.0001964,2]
[359707507,1746269431799,-250.0,0.00019641,2]
[359707509,1746269431809,-1200.0,0.00019641,2]
[359707511,1746269431818,-631.03808419,0.00019642,2]
[359707513,1746269431827,-179.268968,0.00019642,2]
[359707515,1746269431836,-3694.12939603,0.00019669,2]
[359707516,1746269431845,-3694.12939603,0.00019698,2]
[359707518,1746269431855,-179.26896799,0.00019707,2]
[359707520,1746269431864,-40.3076565,0.00019727,2]
[359707523,1746269431880,-973.99724765,0.00019727,2]
[359707524,1746269431892,-2679.82449188,0.00019727,2]
[359707526,1746269431901,-850.0,0.00019739,2]
[359707528,1746269431910,-498.23489184,0.0001974,2]
[359707529,1746269431922,-962.1341602,0.0001974,2]
[359707530,1746269431995,-55905.62534307,0.0001974,2]
[359707531,1746269432004,-154.59422856,0.0001974,2]
[359707532,1746269432014,-3275.90050267,0.0001974,2]
[359707533,1746269432023,-3275.90050267,0.0001974,2]
[359707534,1746269432033,-3275.90050267,0.0001974,2]
[359707535,1746269432042,-3275.90050267,0.0001974,2]
[359707536,1746269432051,-3275.90050267,0.0001974,2]
[359707537,1746269432060,-3275.90050267,0.0001974,2]
[359707538,1746269432069,-3275.90050267,0.0001974,2]
[359707539,1746269432078,-3275.90050267,0.0001974,2]
[359707540,1746269432087,-3275.90050267,0.0001974,2]
[359707541,1746269432096,-3275.90050267,0.0001974,2]
[359707543,1746269432105,-3275.90050267,0.0001974,2]
[359707545,1746269432114,-3275.90050267,0.0001974,2]
[359707547,1746269432123,-3275.90050267,0.0001974,2]
[359707549,1746269432132,-3275.90050267,0.0001974,2]
[359707551,1746269432141,-3275.90050267,0.0001974,2]
[359707553,1746269432151,-3275.90050267,0.0001974,2]
[359707555,1746269432159,-3275.90050267,0.0001974,2]
[359707557,1746269432168,-3275.90050267,0.0001974,2]
[359707559,1746269432178,-3275.90050267,0.0001974,2]
[359707561,1746269432187,-3275.90050267,0.0001974,2]
[359707562,1746269432196,-3275.90050267,0.0001974,2]
[359707565,1746269432205,-3275.90050267,0.0001974,2]
[359707566,1746269432214,-3275.90050267,0.0001974,2]
[359707568,1746269432224,-3275.90050267,0.0001974,2]
[359707570,1746269432233,-3275.90050267,0.0001974,2]
[359707572,1746269432242,-3275.90050267,0.0001974,2]
[359707574,1746269432252,-3275.90050267,0.0001974,2]
[359707576,1746269432261,-3275.90050267,0.0001974,2]
[359707578,1746269432270,-3275.90050267,0.0001974,2]
[359707580,1746269432280,-3275.90050267,0.0001974,2]
[359707582,1746269432290,-3275.90050267,0.0001974,2]
[359707585,1746269432300,-3275.90050267,0.0001974,2]
[359707587,1746269432309,-3275.90050267,0.0001974,2]
[359707589,1746269432319,-3275.90050267,0.0001974,2]
[359707592,1746269432328,-3275.90050267,0.0001974,2]
[359707594,1746269432337,-3275.90050267,0.0001974,2]
[359707597,1746269432347,-3275.90050267,0.0001974,2]
[359707600,1746269432356,-3275.90050267,0.0001974,2]
[359707603,1746269432366,-3275.90050267,0.0001974,2]
[359707606,1746269432375,-3275.90050267,0.0001974,2]
[359707609,1746269432384,-3275.90050267,0.0001974,2]
[359707610,1746269432393,-3275.90050267,0.0001974,2]
[359707612,1746269432403,-3275.90050267,0.0001974,2]
[359707614,1746269432412,-3275.90050267,0.0001974,2]
[359707616,1746269432422,-3275.90050267,0.0001974,2]
[359707618,1746269432431,-3275.90050267,0.0001974,2]
[359707620,1746269432440,-3275.90050267,0.0001974,2]
[359707622,1746269432449,-3275.90050267,0.0001974,2]
[359707624,1746269432458,-3275.90050267,0.0001974,2]
[359707626,1746269432468,-3275.90050267,0.0001974,2]
[359707628,1746269432478,-3275.90050267,0.0001974,2]
[359707630,1746269432487,-3275.90050267,0.0001974,2]
[359707631,1746269432495,-3275.90050267,0.0001974,2]
[359707633,1746269432505,-3275.90050267,0.0001974,2]
[359707635,1746269432514,-3275.90050267,0.0001974,2]
[359707637,1746269432523,-3275.90050267,0.0001974,2]
[359707639,1746269432534,-3275.90050267,0.0001974,2]
[359707641,1746269432543,-3275.90050267,0.0001974,2]
[359707643,1746269432552,-3275.90050267,0.0001974,2]
[359707645,1746269432562,-3275.90050267,0.0001974,2]
[359707647,1746269432570,-3275.90050267,0.0001974,2]
[359707649,1746269432580,-3275.90050267,0.0001974,2]
[359707651,1746269432589,-3275.90050267,0.0001974,2]
[359707653,1746269432600,-3275.90050267,0.0001974,2]
[359707655,1746269432609,-3275.90050267,0.0001974,2]
[359707657,1746269432618,-3275.90050267,0.0001974,2]
[359707659,1746269432627,-3275.90050267,0.0001974,2]
[359707661,1746269432636,-3275.90050267,0.0001974,2]
[359707663,1746269432645,-4066.90561798,0.0001974,2]
[359707665,1746269432655,-4066.90561798,0.0001974,2]
[359707667,1746269432665,-4066.90561798,0.0001974,2]
[359707669,1746269432674,-4066.90561798,0.0001974,2]
[359707671,1746269432684,-4066.90561798,0.0001974,2]
[359707673,1746269432694,-4066.90561798,0.0001974,2]
[359707675,1746269432703,-4066.90561798,0.0001974,2]
[359707677,1746269432713,-4066.90561798,0.0001974,2]
[359707679,1746269432722,-4066.90561798,0.0001974,2]
[359707681,1746269432733,-4066.90561798,0.0001974,2]
[359707683,1746269432743,-4066.90561798,0.0001974,2]
[359707685,1746269432753,-4066.90561798,0.0001974,2]
[359707687,1746269432762,-4066.90561798,0.0001974,2]
[359707689,1746269432772,-4066.90561798,0.0001974,2]
[359707691,1746269432781,-4066.90561798,0.0001974,2]
[359707693,1746269432790,-4066.90561798,0.0001974,2]
[359707695,1746269432800,-4066.90561798,0.0001974,2]
[359707697,1746269432810,-4066.90561798,0.0001974,2]
[359707699,1746269432819,-4066.90561798,0.0001974,2]
[359707701,1746269432828,-4066.90561798,0.0001974,2]
[359707703,1746269432838,-4066.90561798,0.0001974,2]
[359707705,1746269432847,-4066.90561798,0.0001974,2]
[359707707,1746269432856,-4066.90561798,0.0001974,2]
[359707709,1746269432865,-450.0,0.00019741,2]
[359707711,1746269432875,-450.0,0.00019741,2]
[359707713,1746269432884,-450.0,0.00019741,2]
[359707715,1746269432894,-450.0,0.00019741,2]
[359707717,1746269432903,-450.0,0.00019741,2]
[359707719,1746269432913,-450.0,0.00019741,2]
[359707721,1746269432922,-450.0,0.00019741,2]
[359707723,1746269432931,-450.0,0.00019741,2]
[359707725,1746269432941,-450.0,0.00019741,2]
[359707727,1746269432950,-450.0,0.00019741,2]
[359707729,1746269432960,-450.0,0.00019741,2]
[359707731,1746269432969,-450.0,0.00019741,2]
[359707733,1746269432978,-193.87414374,0.00019741,2]
[359707735,1746269432986,-450.0,0.00019741,2]
[359707737,1746269432995,-450.0,0.00019741,2]
[359707738,1746269433004,-450.12,0.00019741,2]
[359707740,1746269433014,-250.0,0.00019741,2]
[359707742,1746269433023,-450.0,0.00019741,2]
[359707744,1746269433033,-450.0,0.00019741,2]
[359707746,1746269433043,-450.0,0.00019741,2]
[359707748,1746269433052,-458.91,0.00019741,2]
[359707750,1746269433062,-450.0,0.00019741,2]
[359707752,1746269433071,-450.0,0.00019741,2]
[359707754,1746269433080,-450.0,0.00019741,2]
[359707756,1746269433090,-468.5302965,0.00019741,2]
[359707758,1746269433100,-450.0,0.00019741,2]
[359707760,1746269433109,-450.0,0.00019741,2]
[359707762,1746269433120,-297.35320756,0.00019741,2]
[359707764,1746269433130,-450.0,0.00019741,2]
[359707766,1746269433140,-450.0,0.00019741,2]
[359707769,1746269433151,-450.0,0.00019741,2]
[359707770,1746269433162,-450.0,0.00019741,2]
[359707772,1746269433172,-450.0,0.00019741,2]
[359707774,1746269433181,-288.06419333,0.00019741,2]
[359707776,1746269433191,-450.0,0.00019741,2]
[359707778,1746269433201,-239.32776593,0.00019741,2]
[359707780,1746269433211,-450.0,0.00019741,2]
[359707782,1746269433220,-197.45924436,0.00019741,2]
[359707784,1746269433230,-450.0,0.00019741,2]
[359707786,1746269433239,-450.0,0.00019741,2]
[359707788,1746269433250,-450.0,0.00019741,2]
[359707790,1746269433260,-450.0,0.00019741,2]
[359707792,1746269433271,-254.82179093,0.00019741,2]
[359707794,1746269433281,-450.0,0.00019741,2]
[359707796,1746269433291,-450.0,0.00019741,2]
[359707798,1746269433300,-150.0,0.00019741,2]
[359707800,1746269433309,-450.0,0.00019741,2]
[359707802,1746269433319,-581.89006525,0.00019741,2]
[359707804,1746269433328,-450.0,0.00019741,2]
[359707806,1746269433338,-154.47470558,0.00019741,2]
[359707808,1746269433347,-450.0,0.00019741,2]
[359707810,1746269433357,-450.0,0.00019741,2]
[359707812,1746269433366,-450.0,0.00019741,2]
[359707814,1746269433375,-857.19,0.00019741,2]
[359707816,1746269433385,-450.0,0.00019741,2]
[359707818,1746269433395,-450.0,0.00019741,2]
[359707820,1746269433404,-450.0,0.00019741,2]
[359707822,1746269433413,-450.0,0.00019741,2]
[359707824,1746269433423,-450.0,0.00019741,2]
[359707826,1746269433432,-514.11213861,0.00019741,2]
[359707828,1746269433442,-450.0,0.00019741,2]
[359707830,1746269433451,-450.0,0.00019741,2]
[359707832,1746269433460,-151.99235724,0.00019741,2]
[359707834,1746269433470,-450.0,0.00019741,2]
[359707836,1746269433479,-450.0,0.00019741,2]
[359707838,1746269433488,-460.75303461,0.00019741,2]
[359707840,1746269433497,-450.0,0.00019741,2]
[359707842,1746269433506,-450.0,0.00019741,2]
[359707844,1746269433515,-450.0,0.00019741,2]
[359707846,1746269433524,-450.0,0.00019741,2]
[359707848,1746269433534,-466.59846901,0.00019741,2]
[359707850,1746269433545,-450.0,0.00019741,2]
[359707852,1746269433554,-450.0,0.00019741,2]
[359707855,1746269433564,-450.0,0.00019741,2]
[359707856,1746269433574,-450.0,0.00019741,2]
[359707859,1746269433584,-450.0,0.00019741,2]
[359707861,1746269433594,-450.0,0.00019741,2]
[359707863,1746269433607,-190.21,0.00019741,2]
[359707865,1746269433617,-450.0,0.00019741,2]
[359707867,1746269433628,-450.0,0.00019741,2]
[359707869,1746269433637,-450.0,0.00019741,2]
[359707870,1746269433648,-450.0,0.00019741,2]
[359707872,1746269433657,-450.0,0.00019741,2]
[359707874,1746269433667,-450.0,0.00019741,2]
[359707876,1746269433677,-450.0,0.00019741,2]
[359707878,1746269433687,-500.0,0.00019741,2]
[359707880,1746269433697,-450.0,0.00019741,2]
[359707882,1746269433707,-450.0,0.00019741,2]
[359707884,1746269433716,-450.0,0.00019741,2]
[359707886,1746269433725,-465.92322325,0.00019741,2]
[359707888,1746269433734,-450.0,0.00019741,2]
[359707890,1746269433745,-450.0,0.00019741,2]
[359707893,1746269433755,-450.0,0.00019741,2]
[359707895,1746269433764,-450.0,0.00019741,2]
[359707897,1746269433774,-450.0,0.00019741,2]
[359707898,1746269433783,-450.0,0.00019741,2]
[359707900,1746269433793,-450.0,0.00019741,2]
[359707903,1746269433803,-450.0,0.00019741,2]
[359707904,1746269433812,-450.0,0.00019741,2]
[359707906,1746269433821,-450.0,0.00019741,2]
[359707909,1746269433831,-450.0,0.00019741,2]
[359707910,1746269433841,-284.79798415,0.00019741,2]
[359707912,1746269433850,-450.0,0.00019741,2]
[359707914,1746269433860,-460.92455464,0.00019741,2]
[359707916,1746269433869,-450.0,0.00019741,2]
[359707919,1746269433879,-470.42310011,0.00019741,2]
[359707921,1746269433889,-463.39781308,0.00019741,2]
[359707923,1746269433899,-464.33,0.00019741,2]
[359707924,1746269433909,-224.74799335,0.00019741,2]
[359707926,1746269433918,-505.09530994,0.00019741,2]
[359707928,1746269433927,-324.2390092,0.00019741,2]
[359707930,1746269433937,-450.0,0.00019741,2]
[359707933,1746269433948,-904.79,0.00019741,2]
[359707935,1746269433958,-450.0,0.00019741,2]
[359707937,1746269433967,-3680.61,0.00019741,2]
[359707939,1746269433977,-462.90583644,0.00019741,2]
[359707941,1746269433987,-450.0,0.00019741,2]
[359707943,1746269433997,-513.46634422,0.00019741,2]
[359707945,1746269434007,-466.11887136,0.00019741,2]
[359707946,1746269434017,-450.0,0.00019741,2]
[359707948,1746269434027,-450.0,0.00019741,2]
[359707950,1746269434036,-450.0,0.00019741,2]
[359707953,1746269434047,-186.6878311,0.00019741,2]
[359707954,1746269434057,-457.58970064,0.00019741,2]
[359707956,1746269434066,-450.0,0.00019741,2]
[359707958,1746269434075,-456.6535344,0.00019741,2]
[359707960,1746269434084,-450.0,0.00019741,2]
[359707962,1746269434094,-459.43296747,0.00019741,2]
[359707964,1746269434104,-450.0,0.00019741,2]
[359707966,1746269434114,-450.0,0.00019741,2]
[359707968,1746269434124,-462.33875792,0.00019741,2]
[359707970,1746269434133,-507.66,0.00019741,2]
[359707972,1746269434143,-450.0,0.00019741,2]
[359707975,1746269434154,-450.0,0.00019741,2]
[359707977,1746269434166,-1834.28,0.00019741,2]
[359707979,1746269434175,-500.0,0.00019741,2]
[359707981,1746269434184,-450.0,0.00019741,2]
[359707983,1746269434194,-450.0,0.00019741,2]
[359707985,1746269434203,-450.0,0.00019741,2]
[359707986,1746269434212,-459.64652279,0.00019741,2]
[359707988,1746269434221,-455.62903975,0.00019741,2]
[359707989,1746269434230,-450.00055236,0.00019741,2]
[359707990,1746269434240,-450.0,0.00019741,2]
[359707991,1746269434249,-450.0,0.00019741,2]
[359707992,1746269434258,-1000.0,0.00019741,2]
[359707993,1746269434267,-450.0,0.00019741,2]
[359707994,1746269434277,-450.0,0.00019741,2]
[359707995,1746269434286,-450.0,0.00019741,2]
[359707996,1746269434295,-455.6267015,0.00019741,2]
[359707997,1746269434304,-450.0,0.00019741,2]
[359707998,1746269434313,-450.0,0.00019741,2]
[359707999,1746269434323,-450.0,0.00019741,2]
[359708000,1746269434332,-450.0,0.00019741,2]
[359708001,1746269434341,-450.0,0.00019741,2]
[359708002,1746269434350,-450.0,0.00019741,2]
[359708003,1746269434359,-450.0,0.00019741,2]
[359708004,1746269434368,-450.0,0.00019741,2]
[359708005,1746269434378,-450.0,0.00019741,2]
[359708007,1746269434388,-450.0,0.00019741,2]
[359708009,1746269434398,-450.0,0.00019741,2]
[359708011,1746269434408,-454.09516717,0.00019741,2]
[359708013,1746269434418,-450.0,0.00019741,2]
[359708015,1746269434429,-515.54,0.00019741,2]
[359708017,1746269434438,-462.66,0.00019741,2]
[359708019,1746269434449,-450.0,0.00019741,2]
[359708021,1746269434459,-4367.62,0.00019741,2]
[359708023,1746269434469,-450.0,0.00019741,2]
[359708025,1746269434479,-450.0,0.00019741,2]
[359708027,1746269434490,-450.0,0.00019741,2]
[359708029,1746269434500,-450.0,0.00019741,2]
[359708031,1746269434509,-450.0,0.00019741,2]
[359708033,1746269434519,-382.72520621,0.00019741,2]
[359708035,1746269434528,-450.0,0.00019741,2]
[359708037,1746269434538,-450.0,0.00019741,2]
[359708039,1746269434548,-186.165554,0.00019741,2]
[359708041,1746269434557,-450.0,0.00019741,2]
[359708043,1746269434566,-450.0,0.00019741,2]
[359708045,1746269434575,-393.33690544,0.00019742,2]
[359708047,1746269434584,-460.36345955,0.00019742,2]
[359708049,1746269434593,-450.0,0.00019742,2]
[359708051,1746269434605,-450.0,0.00019742,2]
[359708053,1746269434614,-450.0,0.00019742,2]
[359708055,1746269434623,-550.13,0.00019742,2]
[359708057,1746269434632,-450.0,0.00019742,2]
[359708059,1746269434642,-453.94529681,0.00019742,2]
[359708061,1746269434650,-450.0,0.00019742,2]
[359708063,1746269434660,-450.0,0.00019742,2]
[359708065,1746269434669,-450.0,0.00019742,2]
[359708067,1746269434678,-632.44,0.00019742,2]
[359708069,1746269434687,-450.0,0.00019742,2]
[359708071,1746269434696,-450.0,0.00019742,2]
[359708073,1746269434706,-450.0,0.00019742,2]
[359708075,1746269434715,-462.21321872,0.00019742,2]
[359708077,1746269434724,-450.0,0.00019742,2]
[359708079,1746269434733,-450.0,0.00019742,2]
[359708080,1746269434743,-285.35722301,0.00019742,2]
[359708082,1746269434752,-450.0,0.00019742,2]
[359708084,1746269434761,-450.0,0.00019742,2]
[359708086,1746269434770,-450.0,0.00019742,2]
[359708088,1746269434779,-476.84673161,0.00019742,2]
[359708090,1746269434789,-744.43,0.00019742,2]
[359708092,1746269434798,-450.0,0.00019742,2]
[359708094,1746269434807,-300.0,0.00019742,2]
[359708096,1746269434818,-607.71,0.00019742,2]
[359708098,1746269434827,-450.0,0.00019742,2]
[359708100,1746269434837,-450.0,0.00019742,2]
[359708102,1746269434846,-450.0,0.00019742,2]
[359708104,1746269434855,-450.0,0.00019742,2]
[359708105,1746269434865,-450.0,0.00019742,2]
[359708106,1746269434874,-450.0,0.00019742,2]
[359708107,1746269434884,-450.0,0.00019742,2]
[359708108,1746269434893,-450.0,0.00019742,2]
[359708109,1746269434902,-450.0,0.00019742,2]
[359708110,1746269435104,-450.0,0.00019742,2]
[359708111,1746269435114,-459.53940986,0.00019742,2]
[359708112,1746269435123,-450.0,0.00019742,2]
[359708113,1746269435133,-450.0,0.00019742,2]
[359708114,1746269435142,-450.0,0.00019742,2]
[359708115,1746269435151,-450.0,0.00019742,2]
[359708116,1746269435160,-458.57696253,0.00019742,2]
[359708117,1746269435169,-464.61829308,0.00019742,2]
[359708118,1746269435179,-450.0,0.00019742,2]
[359708119,1746269435188,-570.8,0.00019742,2]
[359708120,1746269435197,-261.56691163,0.00019742,2]
[359708121,1746269435206,-455.54515117,0.00019742,2]
[359708122,1746269435215,-450.0,0.00019742,2]
[359708123,1746269435225,-450.0,0.00019742,2]
[359708124,1746269435234,-450.0,0.00019742,2]
[359708125,1746269435244,-450.0,0.00019742,2]
[359708126,1746269435253,-450.0,0.00019742,2]
[359708127,1746269435263,-450.0,0.00019742,2]
[359708128,1746269435271,-450.0,0.00019742,2]
[359708129,1746269435281,-317.46231603,0.00019742,2]
[359708130,1746269435290,-454.14209355,0.00019742,2]
[359708131,1746269435299,-450.0,0.00019742,2]
[359708132,1746269435309,-457.30874244,0.00019742,2]
[359708133,1746269435320,-450.0,0.00019742,2]
[359708134,1746269435330,-450.0,0.00019742,2]
[359708135,1746269435339,-450.0,0.00019742,2]
[359708136,1746269435348,-450.0,0.00019742,2]
[359708137,1746269435359,-467.9,0.00019742,2]
[359708138,1746269435368,-450.0,0.00019742,2]
[359708139,1746269435377,-525.56832164,0.00019742,2]
[359708140,1746269435396,-450.0,0.00019742,2]
[359708141,1746269435407,-450.0,0.00019742,2]
[359708142,1746269435418,-450.0,0.00019742,2]
[359708143,1746269435428,-450.0,0.00019742,2]
[359708144,1746269435437,-450.0,0.00019742,2]
[359708145,1746269435447,-459.76548518,0.00019742,2]
[359708146,1746269435458,-581.83,0.00019742,2]
[359708147,1746269435470,-450.0,0.00019742,2]
[359708148,1746269435480,-450.0,0.00019742,2]
[359708149,1746269435490,-450.0,0.00019742,2]
[359708150,1746269435500,-450.0,0.00019742,2]
[359708151,1746269435511,-450.0,0.00019742,2]
[359708152,1746269435521,-450.0,0.00019742,2]
[359708153,1746269435531,-450.0,0.00019742,2]
[359708154,1746269435541,-450.0,0.00019742,2]
[359708155,1746269435551,-483.17,0.00019742,2]
[359708156,1746269435561,-450.0,0.00019742,2]
[359708157,1746269435571,-356.92621628,0.00019742,2]
[359708158,1746269435580,-450.0,0.00019742,2]
[359708159,1746269435590,-450.0,0.00019742,2]
[359708160,1746269435603,-462.51289839,0.00019742,2]
[359708161,1746269435614,-200.0,0.00019743,2]
[359708162,1746269435624,-512.77,0.00019743,2]
[359708163,1746269435635,-450.0,0.00019743,2]
[359708164,1746269435646,-450.0,0.00019743,2]
[359708165,1746269435657,-1588.72,0.00019743,2]
[359708166,1746269435667,-450.0,0.00019743,2]
[359708167,1746269435679,-898.65,0.00019743,2]
[359708168,1746269435688,-450.0,0.00019743,2]
[359708169,1746269435699,-450.0,0.00019743,2]
[359708170,1746269435708,-278.75718874,0.00019743,2]
[359708171,1746269435718,-450.0,0.00019743,2]
[359708172,1746269435727,-619.71,0.00019743,2]
[359708173,1746269435737,-450.0,0.00019743,2]
[359708174,1746269435747,-450.0,0.00019743,2]
[359708175,1746269435758,-450.0,0.00019743,2]
[359708176,1746269435769,-956.29,0.00019743,2]
[359708177,1746269435778,-561.61,0.00019743,2]
[359708178,1746269435788,-200.29355851,0.00019743,2]
[359708207,1746269438006,-450.0,0.00019741,2]
[359708209,1746269438015,-481.72757312,0.00019741,2]
[359708210,1746269438024,-450.0,0.00019741,2]
[359708211,1746269438034,-450.0,0.00019741,2]
[359708212,1746269438043,-343.68921524,0.00019743,2]
[359708213,1746269438052,-450.0,0.00019743,2]
[359708214,1746269438061,-528.51,0.00019743,2]
[359708215,1746269438070,-450.0,0.00019743,2]
[359708216,1746269438079,-348.49532768,0.00019743,2]
[359708217,1746269438089,-450.0,0.00019743,2]
[359708218,1746269438098,-492.7,0.00019743,2]
[359708219,1746269438108,-496.93871242,0.00019743,2]
[359708220,1746269438117,-472.75584464,0.00019743,2]
[359708221,1746269438126,-450.0,0.00019743,2]
[359708222,1746269438135,-450.0,0.00019743,2]
[359708223,1746269438145,-450.0,0.00019743,2]
[359708224,1746269438158,-450.0,0.00019743,2]
[359708226,1746269438168,-450.0,0.00019743,2]
[359708228,1746269438177,-758.04,0.00019743,2]
[359708230,1746269438187,-450.0,0.00019743,2]
[359708232,1746269438196,-450.0,0.00019743,2]
[359708234,1746269438205,-623.41,0.00019743,2]
[359708236,1746269438214,-450.0,0.00019743,2]
[359708238,1746269438225,-453.08368277,0.00019743,2]
[359708240,1746269438234,-450.0,0.00019743,2]
[359708242,1746269438243,-450.0,0.00019743,2]
[359708244,1746269438252,-450.0,0.00019743,2]
[359708246,1746269438262,-450.0,0.00019743,2]
[359708248,1746269438271,-756.94,0.00019743,2]
[359708250,1746269438280,-450.0,0.00019743,2]
[359708251,1746269438293,-528.47921867,0.00019743,2]
[359708253,1746269438304,-450.0,0.00019743,2]
[359708255,1746269438314,-450.0,0.00019743,2]
[359708257,1746269438324,-450.0,0.00019743,2]
[359708260,1746269438333,-1089.85,0.00019743,2]
[359708263,1746269438343,-450.0,0.00019743,2]
[359708265,1746269438352,-669.41,0.00019743,2]
[359708268,1746269438362,-450.0,0.00019743,2]
[359708269,1746269438371,-455.41718845,0.00019743,2]
[359708271,1746269438381,-450.0,0.00019743,2]
[359708273,1746269438391,-672.65,0.00019743,2]
[359708275,1746269438400,-470.0,0.00019743,2]
[359708277,1746269438409,-450.0,0.00019743,2]
[359708279,1746269438419,-450.0,0.00019743,2]
[359708281,1746269438428,-450.0,0.00019743,2]
[359708283,1746269438438,-450.0,0.00019743,2]
[359708285,1746269438448,-551.62,0.00019743,2]
[359708287,1746269438458,-450.0,0.00019743,2]
[359708289,1746269438467,-450.0,0.00019743,2]
[359708291,1746269438477,-450.0,0.00019743,2]
[359708293,1746269438486,-450.0,0.00019743,2]
[359708295,1746269438496,-450.0,0.00019743,2]
[359708297,1746269438505,-450.0,0.00019743,2]
[359708299,1746269438515,-512.8752321,0.00019743,2]
[359708301,1746269438524,-527.97,0.00019743,2]
[359708303,1746269438533,-450.0,0.00019743,2]
[359708305,1746269438543,-450.0,0.00019743,2]
[359708307,1746269438551,-450.0,0.00019743,2]
[359708309,1746269438561,-500.0,0.00019743,2]
[359708311,1746269438570,-450.0,0.00019743,2]
[359708313,1746269438580,-450.0,0.00019743,2]
[359708315,1746269438589,-997.54,0.00019743,2]
[359708317,1746269438598,-450.0,0.00019743,2]
[359708319,1746269438607,-450.0,0.00019743,2]
[359708321,1746269438616,-584.92949595,0.00019743,2]
[359708323,1746269438629,-458.82,0.00019743,2]
[359708325,1746269438638,-450.0,0.00019743,2]
[359708327,1746269438648,-450.0,0.00019743,2]
[359708329,1746269438657,-820.63,0.00019743,2]
[359708331,1746269438666,-450.0,0.00019743,2]
[359708333,1746269438675,-792.22,0.00019743,2]
[359708335,1746269438684,-450.0,0.00019743,2]
[359708337,1746269438693,-450.0,0.00019743,2]
[359708339,1746269438703,-450.0,0.00019743,2]
[359708341,1746269438713,-450.0,0.00019743,2]
[359708343,1746269438722,-450.0,0.00019743,2]
[359708345,1746269438731,-450.0,0.00019743,2]
[359708347,1746269438740,-450.0,0.00019743,2]
[359708349,1746269438750,-450.0,0.00019743,2]
[359708351,1746269438759,-450.0,0.00019743,2]
[359708353,1746269438768,-1233.92,0.00019743,2]
[359708354,1746269438778,-450.0,0.00019743,2]
[359708356,1746269438787,-231.13531784,0.00019743,2]
[359708358,1746269438796,-453.81098753,0.00019743,2]
[359708360,1746269438804,-450.0,0.00019743,2]